{"text_format":"3","workbook":"xlsx","n_sheets":2,"sheets":["Liste","Nutzungsbedingungen"],"not_rendered":{"images":1,"macros":1,"defined_names":3},"read":"whole","date_system":"1900"}

{"sheet":"Liste","index":0,"n_rows":209,"n_cols":7,"rows_kept":209,"merged":[[4,5,4,6],[7,3,8,3],[7,4,8,4],[9,3,10,3],[9,4,10,4],[11,3,12,3],[11,4,12,4],[13,3,14,3],[13,4,14,4],[15,3,16,3],[15,4,16,4],[17,3,18,3],[17,4,18,4],[19,3,20,3],[19,4,20,4],[21,3,22,3],[21,4,22,4],[23,3,24,3],[23,4,24,4],[25,3,26,3],[25,4,26,4],[27,3,28,3],[27,4,28,4],[29,3,30,3],[29,4,30,4],[31,3,32,3],[31,4,32,4],[33,3,34,3],[33,4,34,4],[35,3,36,3],[35,4,36,4],[37,3,38,3],[37,4,38,4],[39,3,40,3],[39,4,40,4],[41,3,42,3],[41,4,42,4],[43,3,44,3],[43,4,44,4],[45,3,46,3],[45,4,46,4],[47,3,48,3],[47,4,48,4],[49,3,50,3],[49,4,50,4],[51,3,52,3],[51,4,52,4],[53,3,54,3],[53,4,54,4],[55,3,56,3],[55,4,56,4],[57,3,58,3],[57,4,58,4],[59,3,60,3],[59,4,60,4],[61,3,62,3],[61,4,62,4],[63,3,64,3],[63,4,64,4],[65,3,66,3],[65,4,66,4],[67,3,68,3],[67,4,68,4],[69,3,70,3],[69,4,70,4],[71,3,72,3],[71,4,72,4],[73,3,74,3],[73,4,74,4],[75,3,76,3],[75,4,76,4],[77,3,78,3],[77,4,78,4],[79,3,80,3],[79,4,80,4],[81,3,82,3],[81,4,82,4],[83,3,84,3],[83,4,84,4],[85,3,86,3],[85,4,86,4],[87,3,88,3],[87,4,88,4],[89,3,90,3],[89,4,90,4],[91,3,92,3],[91,4,92,4],[93,3,94,3],[93,4,94,4],[95,3,96,3],[95,4,96,4],[97,3,98,3],[97,4,98,4],[99,3,100,3],[99,4,100,4],[101,3,102,3],[101,4,102,4],[103,3,104,3],[103,4,104,4],[105,3,106,3],[105,4,106,4],[107,3,108,3],[107,4,108,4],[109,3,110,3],[109,4,110,4],[111,3,112,3],[111,4,112,4],[113,3,114,3],[113,4,114,4],[115,3,116,3],[115,4,116,4],[117,3,118,3],[117,4,118,4],[119,3,120,3],[119,4,120,4],[121,3,122,3],[121,4,122,4],[123,3,124,3],[123,4,124,4],[125,3,126,3],[125,4,126,4],[127,3,128,3],[127,4,128,4],[129,3,130,3],[129,4,130,4],[131,3,132,3],[131,4,132,4],[133,3,134,3],[133,4,134,4],[135,3,136,3],[135,4,136,4],[137,3,138,3],[137,4,138,4],[139,3,140,3],[139,4,140,4],[141,3,142,3],[141,4,142,4],[143,3,144,3],[143,4,144,4],[145,3,146,3],[145,4,146,4],[147,3,148,3],[147,4,148,4],[149,3,150,3],[149,4,150,4],[151,3,152,3],[151,4,152,4],[153,3,154,3],[153,4,154,4],[155,3,156,3],[155,4,156,4],[157,3,158,3],[157,4,158,4],[159,3,160,3],[159,4,160,4],[161,3,162,3],[161,4,162,4],[163,3,164,3],[163,4,164,4],[165,3,166,3],[165,4,166,4],[167,3,168,3],[167,4,168,4],[169,3,170,3],[169,4,170,4],[171,3,172,3],[171,4,172,4],[173,3,174,3],[173,4,174,4],[175,3,176,3],[175,4,176,4],[177,3,178,3],[177,4,178,4],[179,3,180,3],[179,4,180,4],[181,3,182,3],[181,4,182,4],[183,3,184,3],[183,4,184,4],[185,3,186,3],[185,4,186,4],[187,3,188,3],[187,4,188,4],[189,3,190,3],[189,4,190,4],[191,3,192,3],[191,4,192,4],[193,3,194,3],[193,4,194,4],[195,3,196,3],[195,4,196,4],[197,3,198,3],[197,4,198,4],[199,3,200,3],[199,4,200,4],[201,3,202,3],[201,4,202,4],[203,3,204,3],[203,4,204,4],[205,3,206,3],[205,4,206,4],[207,3,208,3],[207,4,208,4]]}
["Liste"]
["Erforderliche Informationen/Daten für Genehmigungsantrag/Anzeige"]
["Firma, Standort, Vorhaben"]
[]
[{"$nulls":4},"Bearbeitungsstand:","2018-02-12"]
[]
["#","Inhalte (mit der Behörde im Einzelfall abzustimmen)","erf.","Bemerkung","Verantwortlich","offen_","erl._"]
[{"$f":"ROW(A1)","v":1},"Festlegung der konkreten Vorhabensbezeichnung","x",null,null,{"$f":"IF(G8<>\"\",\"\",\"x\")","v":"x"}]
[null,"Wie heißt das Projekt? Kurztitel des Projekts.",{"$f":"IF(ISBLANK(INDIRECT(\"C\"&ROW(C9)-1))=FALSE,INDIRECT(\"C\"&ROW(C9)-1),\" \")","v":"x"},null,null,{"$f":"IF(ISBLANK(INDIRECT(\"F\"&ROW(F9)-1))=FALSE,INDIRECT(\"F\"&ROW(F9)-1),\" \")","v":"x"},{"$f":"IF(ISBLANK(INDIRECT(\"G\"&ROW(G9)-1))=FALSE,INDIRECT(\"G\"&ROW(G9)-1),\" \")","v":" "}]
[{"$f":"IF(ISBLANK(INDIRECT(\"A\"&ROW()-2))=FALSE,INDIRECT(\"A\"&ROW()-2)+1,\" \")","v":2},"Aktenzeichen und Datum einer bestehenden Genehmigung,","x",null,null,{"$f":"IF(G10<>\"\",\"\",\"x\")","v":"x"}]
[null,"auf die im Antrag Bezug genommen werden soll",{"$f":"IF(ISBLANK(INDIRECT(\"C\"&ROW(C11)-1))=FALSE,INDIRECT(\"C\"&ROW(C11)-1),\" \")","v":"x"},null,null,{"$f":"IF(ISBLANK(INDIRECT(\"F\"&ROW(F11)-1))=FALSE,INDIRECT(\"F\"&ROW(F11)-1),\" \")","v":"x"},{"$f":"IF(ISBLANK(INDIRECT(\"G\"&ROW(G11)-1))=FALSE,INDIRECT(\"G\"&ROW(G11)-1),\" \")","v":" "}]
[{"$f":"IF(ISBLANK(INDIRECT(\"A\"&ROW()-2))=FALSE,INDIRECT(\"A\"&ROW()-2)+1,\" \")","v":3},"Kapazität der Anlage","x",null,null,{"$f":"IF(G12<>\"\",\"\",\"x\")","v":"x"}]
[null,"zwingend anzugeben, wenn für die Einstufung nach 4. BImSchV relevant",{"$f":"IF(ISBLANK(INDIRECT(\"C\"&ROW(C13)-1))=FALSE,INDIRECT(\"C\"&ROW(C13)-1),\" \")","v":"x"},null,null,{"$f":"IF(ISBLANK(INDIRECT(\"F\"&ROW(F13)-1))=FALSE,INDIRECT(\"F\"&ROW(F13)-1),\" \")","v":"x"},{"$f":"IF(ISBLANK(INDIRECT(\"G\"&ROW(G13)-1))=FALSE,INDIRECT(\"G\"&ROW(G13)-1),\" \")","v":" "}]
[{"$f":"IF(ISBLANK(INDIRECT(\"A\"&ROW()-2))=FALSE,INDIRECT(\"A\"&ROW()-2)+1,\" \")","v":4},"Art und Umfang der Anlage","x",null,null,{"$f":"IF(G14<>\"\",\"\",\"x\")","v":"x"}]
[null,"Was wird im Rahmen der Antragsstellung mit erfasst: Hauptanlage, Nebeneinrichtungen",{"$f":"IF(ISBLANK(INDIRECT(\"C\"&ROW(C15)-1))=FALSE,INDIRECT(\"C\"&ROW(C15)-1),\" \")","v":"x"},null,null,{"$f":"IF(ISBLANK(INDIRECT(\"F\"&ROW(F15)-1))=FALSE,INDIRECT(\"F\"&ROW(F15)-1),\" \")","v":"x"},{"$f":"IF(ISBLANK(INDIRECT(\"G\"&ROW(G15)-1))=FALSE,INDIRECT(\"G\"&ROW(G15)-1),\" \")","v":" "}]
[{"$f":"IF(ISBLANK(INDIRECT(\"A\"&ROW()-2))=FALSE,INDIRECT(\"A\"&ROW()-2)+1,\" \")","v":5},"Begründung der Antragsstellung","x",null,null,{"$f":"IF(G16<>\"\",\"\",\"x\")","v":"x"}]
[null,"Was soll gemacht werden und warum? Warum wird es gerade auf diese geplante Art realisiert?\nDie Beschreibung sollte ein bis zwei Absätze lang sein.",{"$f":"IF(ISBLANK(INDIRECT(\"C\"&ROW(C17)-1))=FALSE,INDIRECT(\"C\"&ROW(C17)-1),\" \")","v":"x"},null,null,{"$f":"IF(ISBLANK(INDIRECT(\"F\"&ROW(F17)-1))=FALSE,INDIRECT(\"F\"&ROW(F17)-1),\" \")","v":"x"},{"$f":"IF(ISBLANK(INDIRECT(\"G\"&ROW(G17)-1))=FALSE,INDIRECT(\"G\"&ROW(G17)-1),\" \")","v":" "}]
[{"$f":"IF(ISBLANK(INDIRECT(\"A\"&ROW()-2))=FALSE,INDIRECT(\"A\"&ROW()-2)+1,\" \")","v":6},"Werden andere behördliche Genehmigungen, Erlaubnisse, etc. beantragt?","x",null,null,{"$f":"IF(G18<>\"\",\"\",\"x\")","v":"x"}]
[null,"Zum Beispiel Erlaubnis nach BetrSichV, Bauantrag nach Landesbauordnungen, wasserrechtliche Genehmigung etc.",{"$f":"IF(ISBLANK(INDIRECT(\"C\"&ROW(C19)-1))=FALSE,INDIRECT(\"C\"&ROW(C19)-1),\" \")","v":"x"},null,null,{"$f":"IF(ISBLANK(INDIRECT(\"F\"&ROW(F19)-1))=FALSE,INDIRECT(\"F\"&ROW(F19)-1),\" \")","v":"x"},{"$f":"IF(ISBLANK(INDIRECT(\"G\"&ROW(G19)-1))=FALSE,INDIRECT(\"G\"&ROW(G19)-1),\" \")","v":" "}]
[{"$f":"IF(ISBLANK(INDIRECT(\"A\"&ROW()-2))=FALSE,INDIRECT(\"A\"&ROW()-2)+1,\" \")","v":7},"Name und Adresse des Antragstellers (Firma)","x",null,null,{"$f":"IF(G20<>\"\",\"\",\"x\")","v":"x"}]
[null,"Firmierung und Hausadresse",{"$f":"IF(ISBLANK(INDIRECT(\"C\"&ROW(C21)-1))=FALSE,INDIRECT(\"C\"&ROW(C21)-1),\" \")","v":"x"},null,null,{"$f":"IF(ISBLANK(INDIRECT(\"F\"&ROW(F21)-1))=FALSE,INDIRECT(\"F\"&ROW(F21)-1),\" \")","v":"x"},{"$f":"IF(ISBLANK(INDIRECT(\"G\"&ROW(G21)-1))=FALSE,INDIRECT(\"G\"&ROW(G21)-1),\" \")","v":" "}]
[{"$f":"IF(ISBLANK(INDIRECT(\"A\"&ROW()-2))=FALSE,INDIRECT(\"A\"&ROW()-2)+1,\" \")","v":8},"Ansprechpartner im Unternehmen für Rückfragen (durch die Behörde)","x",null,null,{"$f":"IF(G22<>\"\",\"\",\"x\")","v":"x"}]
[null,"Name, Telefon, E-Mail",{"$f":"IF(ISBLANK(INDIRECT(\"C\"&ROW(C23)-1))=FALSE,INDIRECT(\"C\"&ROW(C23)-1),\" \")","v":"x"},null,null,{"$f":"IF(ISBLANK(INDIRECT(\"F\"&ROW(F23)-1))=FALSE,INDIRECT(\"F\"&ROW(F23)-1),\" \")","v":"x"},{"$f":"IF(ISBLANK(INDIRECT(\"G\"&ROW(G23)-1))=FALSE,INDIRECT(\"G\"&ROW(G23)-1),\" \")","v":" "}]
[{"$f":"IF(ISBLANK(INDIRECT(\"A\"&ROW()-2))=FALSE,INDIRECT(\"A\"&ROW()-2)+1,\" \")","v":9},"Standort der Anlage","x",null,null,{"$f":"IF(G24<>\"\",\"\",\"x\")","v":"x"}]
[null,"Adresse, Gemarkung, Flurstück",{"$f":"IF(ISBLANK(INDIRECT(\"C\"&ROW(C25)-1))=FALSE,INDIRECT(\"C\"&ROW(C25)-1),\" \")","v":"x"},null,null,{"$f":"IF(ISBLANK(INDIRECT(\"F\"&ROW(F25)-1))=FALSE,INDIRECT(\"F\"&ROW(F25)-1),\" \")","v":"x"},{"$f":"IF(ISBLANK(INDIRECT(\"G\"&ROW(G25)-1))=FALSE,INDIRECT(\"G\"&ROW(G25)-1),\" \")","v":" "}]
[{"$f":"IF(ISBLANK(INDIRECT(\"A\"&ROW()-2))=FALSE,INDIRECT(\"A\"&ROW()-2)+1,\" \")","v":10},"Zeitpunkt der vorgesehenen Errichtung der Anlage",{"$nulls":3},{"$f":"IF(G26<>\"\",\"\",\"x\")","v":"x"}]
[null,"Zeitpunkt darf erst nach dem Zeitpunkt der zu erwartenden Genehmigung liegen, bzw. einen Monat nach Einreichung der Anzeige.",{"$f":"IF(ISBLANK(INDIRECT(\"C\"&ROW(C27)-1))=FALSE,INDIRECT(\"C\"&ROW(C27)-1),\" \")","v":" "},null,null,{"$f":"IF(ISBLANK(INDIRECT(\"F\"&ROW(F27)-1))=FALSE,INDIRECT(\"F\"&ROW(F27)-1),\" \")","v":"x"},{"$f":"IF(ISBLANK(INDIRECT(\"G\"&ROW(G27)-1))=FALSE,INDIRECT(\"G\"&ROW(G27)-1),\" \")","v":" "}]
[{"$f":"IF(ISBLANK(INDIRECT(\"A\"&ROW()-2))=FALSE,INDIRECT(\"A\"&ROW()-2)+1,\" \")","v":11},"Zeitpunkt der vorgesehenen Inbetriebnahme der Anlage","x",null,null,{"$f":"IF(G28<>\"\",\"\",\"x\")","v":"x"}]
[null,"Zeitpunkt der Inbetriebnahme ist auch schon der Probebetrieb",{"$f":"IF(ISBLANK(INDIRECT(\"C\"&ROW(C29)-1))=FALSE,INDIRECT(\"C\"&ROW(C29)-1),\" \")","v":"x"},null,null,{"$f":"IF(ISBLANK(INDIRECT(\"F\"&ROW(F29)-1))=FALSE,INDIRECT(\"F\"&ROW(F29)-1),\" \")","v":"x"},{"$f":"IF(ISBLANK(INDIRECT(\"G\"&ROW(G29)-1))=FALSE,INDIRECT(\"G\"&ROW(G29)-1),\" \")","v":" "}]
[{"$f":"IF(ISBLANK(INDIRECT(\"A\"&ROW()-2))=FALSE,INDIRECT(\"A\"&ROW()-2)+1,\" \")","v":12},"Abgabe des Antrags auf elektronischem Weg möglich? In welcher Form?","x","Bei der Vorantragskonferenz zu klären.",null,{"$f":"IF(G30<>\"\",\"\",\"x\")","v":"x"}]
[null,"Die Art und Weise ist abhängig vom Bundesland. Dies ist mit der Genehmigungsbehörde abzustimmen.",{"$f":"IF(ISBLANK(INDIRECT(\"C\"&ROW(C31)-1))=FALSE,INDIRECT(\"C\"&ROW(C31)-1),\" \")","v":"x"},"Bei der Vorantragskonferenz zu klären.",null,{"$f":"IF(ISBLANK(INDIRECT(\"F\"&ROW(F31)-1))=FALSE,INDIRECT(\"F\"&ROW(F31)-1),\" \")","v":"x"},{"$f":"IF(ISBLANK(INDIRECT(\"G\"&ROW(G31)-1))=FALSE,INDIRECT(\"G\"&ROW(G31)-1),\" \")","v":" "}]
[{"$f":"IF(ISBLANK(INDIRECT(\"A\"&ROW()-2))=FALSE,INDIRECT(\"A\"&ROW()-2)+1,\" \")","v":13},"Anzahl der bei der Behörde als Papierversion einzureichenden Exemplare?","x","Bei der Vorantragskonferenz zu klären.",null,{"$f":"IF(G32<>\"\",\"\",\"x\")","v":"x"}]
[null,"Dies ist mit der Genehmigungsbehörde abzustimmen",{"$f":"IF(ISBLANK(INDIRECT(\"C\"&ROW(C33)-1))=FALSE,INDIRECT(\"C\"&ROW(C33)-1),\" \")","v":"x"},"Bei der Vorantragskonferenz zu klären.",null,{"$f":"IF(ISBLANK(INDIRECT(\"F\"&ROW(F33)-1))=FALSE,INDIRECT(\"F\"&ROW(F33)-1),\" \")","v":"x"},{"$f":"IF(ISBLANK(INDIRECT(\"G\"&ROW(G33)-1))=FALSE,INDIRECT(\"G\"&ROW(G33)-1),\" \")","v":" "}]
[{"$f":"IF(ISBLANK(INDIRECT(\"A\"&ROW()-2))=FALSE,INDIRECT(\"A\"&ROW()-2)+1,\" \")","v":14},"Anzahl der Exemplare für den Antragssteller?","x",null,null,{"$f":"IF(G34<>\"\",\"\",\"x\")","v":"x"}]
[null,"inkl. der Exemplare für Planer etc.",{"$f":"IF(ISBLANK(INDIRECT(\"C\"&ROW(C35)-1))=FALSE,INDIRECT(\"C\"&ROW(C35)-1),\" \")","v":"x"},null,null,{"$f":"IF(ISBLANK(INDIRECT(\"F\"&ROW(F35)-1))=FALSE,INDIRECT(\"F\"&ROW(F35)-1),\" \")","v":"x"},{"$f":"IF(ISBLANK(INDIRECT(\"G\"&ROW(G35)-1))=FALSE,INDIRECT(\"G\"&ROW(G35)-1),\" \")","v":" "}]
[{"$f":"IF(ISBLANK(INDIRECT(\"A\"&ROW()-2))=FALSE,INDIRECT(\"A\"&ROW()-2)+1,\" \")","v":15},"Welche Formulare müssen zwingend verwendet/eingereicht werden?","x","Bei der Vorantragskonferenz zu klären.",null,{"$f":"IF(G36<>\"\",\"\",\"x\")","v":"x"}]
[null,"Abhängig vom Bundesland, Landkreis und ggf. abhängig vom Vorhaben.\nMit der Genehmigungsbehörde zu klären",{"$f":"IF(ISBLANK(INDIRECT(\"C\"&ROW(C37)-1))=FALSE,INDIRECT(\"C\"&ROW(C37)-1),\" \")","v":"x"},"Bei der Vorantragskonferenz zu klären.",null,{"$f":"IF(ISBLANK(INDIRECT(\"F\"&ROW(F37)-1))=FALSE,INDIRECT(\"F\"&ROW(F37)-1),\" \")","v":"x"},{"$f":"IF(ISBLANK(INDIRECT(\"G\"&ROW(G37)-1))=FALSE,INDIRECT(\"G\"&ROW(G37)-1),\" \")","v":" "}]
[{"$f":"IF(ISBLANK(INDIRECT(\"A\"&ROW()-2))=FALSE,INDIRECT(\"A\"&ROW()-2)+1,\" \")","v":16},"Name des Betreibers der Anlage","x",null,null,{"$f":"IF(G38<>\"\",\"\",\"x\")","v":"x"}]
[null,"Wer aus der Geschäftsführung/ aus dem Vorstand nimmt die Betreiberpflichten war - Angabe nach § 52b BImSchG",{"$f":"IF(ISBLANK(INDIRECT(\"C\"&ROW(C39)-1))=FALSE,INDIRECT(\"C\"&ROW(C39)-1),\" \")","v":"x"},null,null,{"$f":"IF(ISBLANK(INDIRECT(\"F\"&ROW(F39)-1))=FALSE,INDIRECT(\"F\"&ROW(F39)-1),\" \")","v":"x"},{"$f":"IF(ISBLANK(INDIRECT(\"G\"&ROW(G39)-1))=FALSE,INDIRECT(\"G\"&ROW(G39)-1),\" \")","v":" "}]
[{"$f":"IF(ISBLANK(INDIRECT(\"A\"&ROW()-2))=FALSE,INDIRECT(\"A\"&ROW()-2)+1,\" \")","v":17},"Darlegung der Betriebsorganisation (Organigramm)","x",null,null,{"$f":"IF(G40<>\"\",\"\",\"x\")","v":"x"}]
[null,"Ggf. nur des für die Anlagengenehmigung relevanten Teils des Unternehmens - Angabe nach § 52b BImSchG",{"$f":"IF(ISBLANK(INDIRECT(\"C\"&ROW(C41)-1))=FALSE,INDIRECT(\"C\"&ROW(C41)-1),\" \")","v":"x"},null,null,{"$f":"IF(ISBLANK(INDIRECT(\"F\"&ROW(F41)-1))=FALSE,INDIRECT(\"F\"&ROW(F41)-1),\" \")","v":"x"},{"$f":"IF(ISBLANK(INDIRECT(\"G\"&ROW(G41)-1))=FALSE,INDIRECT(\"G\"&ROW(G41)-1),\" \")","v":" "}]
[{"$f":"IF(ISBLANK(INDIRECT(\"A\"&ROW()-2))=FALSE,INDIRECT(\"A\"&ROW()-2)+1,\" \")","v":18},"Name der Betriebsbeauftragten (wenn erforderlich)",{"$nulls":3},{"$f":"IF(G42<>\"\",\"\",\"x\")","v":"x"}]
[null,"Immissionsschutzbeauftragter, Abfallbeauftrager, Gewässerschutzbeauftragter",{"$f":"IF(ISBLANK(INDIRECT(\"C\"&ROW(C43)-1))=FALSE,INDIRECT(\"C\"&ROW(C43)-1),\" \")","v":" "},null,null,{"$f":"IF(ISBLANK(INDIRECT(\"F\"&ROW(F43)-1))=FALSE,INDIRECT(\"F\"&ROW(F43)-1),\" \")","v":"x"},{"$f":"IF(ISBLANK(INDIRECT(\"G\"&ROW(G43)-1))=FALSE,INDIRECT(\"G\"&ROW(G43)-1),\" \")","v":" "}]
[{"$f":"IF(ISBLANK(INDIRECT(\"A\"&ROW()-2))=FALSE,INDIRECT(\"A\"&ROW()-2)+1,\" \")","v":19},"Einverständniserklärung des Grundstückeigentümers",{"$nulls":3},{"$f":"IF(G44<>\"\",\"\",\"x\")","v":"x"}]
[null,"... falls nicht identisch mit dem Antragsteller/Betreiber",{"$f":"IF(ISBLANK(INDIRECT(\"C\"&ROW(C45)-1))=FALSE,INDIRECT(\"C\"&ROW(C45)-1),\" \")","v":" "},null,null,{"$f":"IF(ISBLANK(INDIRECT(\"F\"&ROW(F45)-1))=FALSE,INDIRECT(\"F\"&ROW(F45)-1),\" \")","v":"x"},{"$f":"IF(ISBLANK(INDIRECT(\"G\"&ROW(G45)-1))=FALSE,INDIRECT(\"G\"&ROW(G45)-1),\" \")","v":" "}]
[{"$f":"IF(ISBLANK(INDIRECT(\"A\"&ROW()-2))=FALSE,INDIRECT(\"A\"&ROW()-2)+1,\" \")","v":20},"Baukosten nach DIN 276",{"$nulls":3},{"$f":"IF(G46<>\"\",\"\",\"x\")","v":"x"}]
[null,"Grundlage für die Ermittlung der Genehmigungsgebühren",{"$f":"IF(ISBLANK(INDIRECT(\"C\"&ROW(C47)-1))=FALSE,INDIRECT(\"C\"&ROW(C47)-1),\" \")","v":" "},null,null,{"$f":"IF(ISBLANK(INDIRECT(\"F\"&ROW(F47)-1))=FALSE,INDIRECT(\"F\"&ROW(F47)-1),\" \")","v":"x"},{"$f":"IF(ISBLANK(INDIRECT(\"G\"&ROW(G47)-1))=FALSE,INDIRECT(\"G\"&ROW(G47)-1),\" \")","v":" "}]
[{"$f":"IF(ISBLANK(INDIRECT(\"A\"&ROW()-2))=FALSE,INDIRECT(\"A\"&ROW()-2)+1,\" \")","v":21},"Kosten für die Technik/Anlagen","x",null,null,{"$f":"IF(G48<>\"\",\"\",\"x\")","v":"x"}]
[null,"Grundlage für die Ermittlung der Genehmigungsgebühren",{"$f":"IF(ISBLANK(INDIRECT(\"C\"&ROW(C49)-1))=FALSE,INDIRECT(\"C\"&ROW(C49)-1),\" \")","v":"x"},null,null,{"$f":"IF(ISBLANK(INDIRECT(\"F\"&ROW(F49)-1))=FALSE,INDIRECT(\"F\"&ROW(F49)-1),\" \")","v":"x"},{"$f":"IF(ISBLANK(INDIRECT(\"G\"&ROW(G49)-1))=FALSE,INDIRECT(\"G\"&ROW(G49)-1),\" \")","v":" "}]
[{"$f":"IF(ISBLANK(INDIRECT(\"A\"&ROW()-2))=FALSE,INDIRECT(\"A\"&ROW()-2)+1,\" \")","v":22},"Übersichtsplan des Standorts/des Werks",{"$nulls":3},{"$f":"IF(G50<>\"\",\"\",\"x\")","v":"x"}]
[null,"Mit grafischem Hinweis auf das relevante Gebäude und die Position der Anlage",{"$f":"IF(ISBLANK(INDIRECT(\"C\"&ROW(C51)-1))=FALSE,INDIRECT(\"C\"&ROW(C51)-1),\" \")","v":" "},null,null,{"$f":"IF(ISBLANK(INDIRECT(\"F\"&ROW(F51)-1))=FALSE,INDIRECT(\"F\"&ROW(F51)-1),\" \")","v":"x"},{"$f":"IF(ISBLANK(INDIRECT(\"G\"&ROW(G51)-1))=FALSE,INDIRECT(\"G\"&ROW(G51)-1),\" \")","v":" "}]
[{"$f":"IF(ISBLANK(INDIRECT(\"A\"&ROW()-2))=FALSE,INDIRECT(\"A\"&ROW()-2)+1,\" \")","v":23},"Topografische Karte(n)",null,"Kann aus den Geoportalen der Länder entnommen werden.",null,{"$f":"IF(G52<>\"\",\"\",\"x\")","v":"x"}]
[null,null,{"$f":"IF(ISBLANK(INDIRECT(\"C\"&ROW(C53)-1))=FALSE,INDIRECT(\"C\"&ROW(C53)-1),\" \")","v":" "},null,null,{"$f":"IF(ISBLANK(INDIRECT(\"F\"&ROW(F53)-1))=FALSE,INDIRECT(\"F\"&ROW(F53)-1),\" \")","v":"x"},{"$f":"IF(ISBLANK(INDIRECT(\"G\"&ROW(G53)-1))=FALSE,INDIRECT(\"G\"&ROW(G53)-1),\" \")","v":" "}]
[{"$f":"IF(ISBLANK(INDIRECT(\"A\"&ROW()-2))=FALSE,INDIRECT(\"A\"&ROW()-2)+1,\" \")","v":24},"Lageplan",{"$nulls":3},{"$f":"IF(G54<>\"\",\"\",\"x\")","v":"x"}]
[null,"Ist ggf. im separaten Baugesuch enthalten.",{"$f":"IF(ISBLANK(INDIRECT(\"C\"&ROW(C55)-1))=FALSE,INDIRECT(\"C\"&ROW(C55)-1),\" \")","v":" "},null,null,{"$f":"IF(ISBLANK(INDIRECT(\"F\"&ROW(F55)-1))=FALSE,INDIRECT(\"F\"&ROW(F55)-1),\" \")","v":"x"},{"$f":"IF(ISBLANK(INDIRECT(\"G\"&ROW(G55)-1))=FALSE,INDIRECT(\"G\"&ROW(G55)-1),\" \")","v":" "}]
[{"$f":"IF(ISBLANK(INDIRECT(\"A\"&ROW()-2))=FALSE,INDIRECT(\"A\"&ROW()-2)+1,\" \")","v":25},"Auszug aus dem Flächennutzungsplan",{"$nulls":3},{"$f":"IF(G56<>\"\",\"\",\"x\")","v":"x"}]
[null,"Ist ggf. im separaten Baugesuch enthalten.",{"$f":"IF(ISBLANK(INDIRECT(\"C\"&ROW(C57)-1))=FALSE,INDIRECT(\"C\"&ROW(C57)-1),\" \")","v":" "},null,null,{"$f":"IF(ISBLANK(INDIRECT(\"F\"&ROW(F57)-1))=FALSE,INDIRECT(\"F\"&ROW(F57)-1),\" \")","v":"x"},{"$f":"IF(ISBLANK(INDIRECT(\"G\"&ROW(G57)-1))=FALSE,INDIRECT(\"G\"&ROW(G57)-1),\" \")","v":" "}]
[{"$f":"IF(ISBLANK(INDIRECT(\"A\"&ROW()-2))=FALSE,INDIRECT(\"A\"&ROW()-2)+1,\" \")","v":26},"Einstufung des Standorts nach Flächennutzungsplan","x",null,null,{"$f":"IF(G58<>\"\",\"\",\"x\")","v":"x"}]
[null,"Industriegebiet (GI), Gewerbegebiet (GE), Urbanes Gebiet (GU), Mischgebiet (MI)",{"$f":"IF(ISBLANK(INDIRECT(\"C\"&ROW(C59)-1))=FALSE,INDIRECT(\"C\"&ROW(C59)-1),\" \")","v":"x"},null,null,{"$f":"IF(ISBLANK(INDIRECT(\"F\"&ROW(F59)-1))=FALSE,INDIRECT(\"F\"&ROW(F59)-1),\" \")","v":"x"},{"$f":"IF(ISBLANK(INDIRECT(\"G\"&ROW(G59)-1))=FALSE,INDIRECT(\"G\"&ROW(G59)-1),\" \")","v":" "}]
[{"$f":"IF(ISBLANK(INDIRECT(\"A\"&ROW()-2))=FALSE,INDIRECT(\"A\"&ROW()-2)+1,\" \")","v":27},"Beschreibung der Umgebung des Standorts",{"$nulls":3},{"$f":"IF(G60<>\"\",\"\",\"x\")","v":"x"}]
[null,"Was ist in der direkten und näheren Nachbarschaft? Beschreibung geordnet nach Himmelsrichtungen",{"$f":"IF(ISBLANK(INDIRECT(\"C\"&ROW(C61)-1))=FALSE,INDIRECT(\"C\"&ROW(C61)-1),\" \")","v":" "},null,null,{"$f":"IF(ISBLANK(INDIRECT(\"F\"&ROW(F61)-1))=FALSE,INDIRECT(\"F\"&ROW(F61)-1),\" \")","v":"x"},{"$f":"IF(ISBLANK(INDIRECT(\"G\"&ROW(G61)-1))=FALSE,INDIRECT(\"G\"&ROW(G61)-1),\" \")","v":" "}]
[{"$f":"IF(ISBLANK(INDIRECT(\"A\"&ROW()-2))=FALSE,INDIRECT(\"A\"&ROW()-2)+1,\" \")","v":28},"Grundfläche des gesamten Standorts [m²]","x",null,null,{"$f":"IF(G62<>\"\",\"\",\"x\")","v":"x"}]
[null,null,{"$f":"IF(ISBLANK(INDIRECT(\"C\"&ROW(C63)-1))=FALSE,INDIRECT(\"C\"&ROW(C63)-1),\" \")","v":"x"},null,null,{"$f":"IF(ISBLANK(INDIRECT(\"F\"&ROW(F63)-1))=FALSE,INDIRECT(\"F\"&ROW(F63)-1),\" \")","v":"x"},{"$f":"IF(ISBLANK(INDIRECT(\"G\"&ROW(G63)-1))=FALSE,INDIRECT(\"G\"&ROW(G63)-1),\" \")","v":" "}]
[29,"Grundfläche des geplanten Vorhabens [m²] - zusätzliche/bestehende Fläche?","x",null,null,{"$f":"IF(G64<>\"\",\"\",\"x\")","v":"x"}]
[null,null,"x",null,null,"x"," "]
[{"$f":"IF(ISBLANK(INDIRECT(\"A\"&ROW()-2))=FALSE,INDIRECT(\"A\"&ROW()-2)+1,\" \")","v":30},"Liegt der Standort in einem Schutzgebiet?","x","Kann aus den Geoportalen der Länder entnommen werden.",null,{"$f":"IF(G66<>\"\",\"\",\"x\")","v":"x"}]
[null,"Wasserschutzgebiet, Naturschutzgebiet, Heilquellenschutzgebiet etc.?",{"$f":"IF(ISBLANK(INDIRECT(\"C\"&ROW(C67)-1))=FALSE,INDIRECT(\"C\"&ROW(C67)-1),\" \")","v":"x"},null,null,{"$f":"IF(ISBLANK(INDIRECT(\"F\"&ROW(F67)-1))=FALSE,INDIRECT(\"F\"&ROW(F67)-1),\" \")","v":"x"},{"$f":"IF(ISBLANK(INDIRECT(\"G\"&ROW(G67)-1))=FALSE,INDIRECT(\"G\"&ROW(G67)-1),\" \")","v":" "}]
[31,"Sind darauf hin besondere Maßnahmen erforderlich?","x",null,null,{"$f":"IF(G68<>\"\",\"\",\"x\")","v":"x"}]
[null,"Zum Beispiel Ausgleichsmaßnahmen nach BNatSchG\nDiese beschreiben (siehe unten)","x",null,null,"x"," "]
[{"$f":"IF(ISBLANK(INDIRECT(\"A\"&ROW()-2))=FALSE,INDIRECT(\"A\"&ROW()-2)+1,\" \")","v":32},"Layouts für alle relevanten Ebenen, ggf. Schnitte, wo hilfreich",{"$nulls":3},{"$f":"IF(G70<>\"\",\"\",\"x\")","v":"x"}]
[null,"Aus den Layouts müssen Betriebseinheiten, Lagerorte, Sozial- und Sanitärräume hervorgehen.",{"$f":"IF(ISBLANK(INDIRECT(\"C\"&ROW(C71)-1))=FALSE,INDIRECT(\"C\"&ROW(C71)-1),\" \")","v":" "},null,null,{"$f":"IF(ISBLANK(INDIRECT(\"F\"&ROW(F71)-1))=FALSE,INDIRECT(\"F\"&ROW(F71)-1),\" \")","v":"x"},{"$f":"IF(ISBLANK(INDIRECT(\"G\"&ROW(G71)-1))=FALSE,INDIRECT(\"G\"&ROW(G71)-1),\" \")","v":" "}]
[33,"Komplettes Baugesuch für alle baurechtlich zu genehmigenden Teile",{"$nulls":3},{"$f":"IF(G72<>\"\",\"\",\"x\")","v":"x"}]
[null,"Baugesuch nach Landesbauordnungen; \nBaugesuch ist im Falle eines immissionsschutzrechtlichen Genehmigungsverfahrens ein unselbstständiger Teil des Antrags nach BImSchG",{"$f":"IF(ISBLANK(INDIRECT(\"C\"&ROW(C73)-1))=FALSE,INDIRECT(\"C\"&ROW(C73)-1),\" \")","v":" "},null,null,{"$f":"IF(ISBLANK(INDIRECT(\"F\"&ROW(F73)-1))=FALSE,INDIRECT(\"F\"&ROW(F73)-1),\" \")","v":"x"},{"$f":"IF(ISBLANK(INDIRECT(\"G\"&ROW(G73)-1))=FALSE,INDIRECT(\"G\"&ROW(G73)-1),\" \")","v":" "}]
[{"$f":"IF(ISBLANK(INDIRECT(\"A\"&ROW()-2))=FALSE,INDIRECT(\"A\"&ROW()-2)+1,\" \")","v":34},"Blockschema über den Verfahrensablauf",{"$nulls":3},{"$f":"IF(G74<>\"\",\"\",\"x\")","v":"x"}]
[null,"Einbindung der Anlage in den Gesamtablauf und Darstellung der einzelnen Verfahrensschritte innerhalb der Anlage, inkl. Produktfluss (Stoffströme für Material, Wasser, Luft).\nSofern nur Teile der Gesamtanlage zur Genehmigung eingereicht werden, müssen die Schnittstellen aus dem Blockschema hervorgehen.",{"$f":"IF(ISBLANK(INDIRECT(\"C\"&ROW(C75)-1))=FALSE,INDIRECT(\"C\"&ROW(C75)-1),\" \")","v":" "},null,null,{"$f":"IF(ISBLANK(INDIRECT(\"F\"&ROW(F75)-1))=FALSE,INDIRECT(\"F\"&ROW(F75)-1),\" \")","v":"x"},{"$f":"IF(ISBLANK(INDIRECT(\"G\"&ROW(G75)-1))=FALSE,INDIRECT(\"G\"&ROW(G75)-1),\" \")","v":" "}]
[35,"Verfahrensschemata für alle Betriebseinheiten",{"$nulls":3},{"$f":"IF(G76<>\"\",\"\",\"x\")","v":"x"}]
[null,"Darstellung der Aggregate sowie des Produkt- und Medienflusses."," ",null,null,"x"," "]
[{"$f":"IF(ISBLANK(INDIRECT(\"A\"&ROW()-2))=FALSE,INDIRECT(\"A\"&ROW()-2)+1,\" \")","v":36},"Verfahrensbeschreibung für die Anlage und alle Nebeneinrichtungen","x",null,null,{"$f":"IF(G78<>\"\",\"\",\"x\")","v":"x"}]
[null,"Verfahrensbeschreibung bezogen auf den Produktfluss sowie bezogen auf den Medienfluss inkl. Luft- und Wasserpfad.\nDie Verfahrensbeschreibung muss mit den Verfahrensschemata übereinstimmen.",{"$f":"IF(ISBLANK(INDIRECT(\"C\"&ROW(C79)-1))=FALSE,INDIRECT(\"C\"&ROW(C79)-1),\" \")","v":"x"},null,null,{"$f":"IF(ISBLANK(INDIRECT(\"F\"&ROW(F79)-1))=FALSE,INDIRECT(\"F\"&ROW(F79)-1),\" \")","v":"x"},{"$f":"IF(ISBLANK(INDIRECT(\"G\"&ROW(G79)-1))=FALSE,INDIRECT(\"G\"&ROW(G79)-1),\" \")","v":" "}]
[{"$f":"IF(ISBLANK(INDIRECT(\"A\"&ROW()-2))=FALSE,INDIRECT(\"A\"&ROW()-2)+1,\" \")","v":37},"Berücksichtigen von einschlägigen BREF bei IVU-Anlagen",{"$nulls":3},{"$f":"IF(G80<>\"\",\"\",\"x\")","v":"x"}]
[null,"Welche?\nBREF = BVT-Merkblatt (BVT = Beste verfügbare Technik)\nIVU-Anlage = Anlage genannt in Anhang I der IVU-Richtlinie",{"$f":"IF(ISBLANK(INDIRECT(\"C\"&ROW(C81)-1))=FALSE,INDIRECT(\"C\"&ROW(C81)-1),\" \")","v":" "},null,null,{"$f":"IF(ISBLANK(INDIRECT(\"F\"&ROW(F81)-1))=FALSE,INDIRECT(\"F\"&ROW(F81)-1),\" \")","v":"x"},{"$f":"IF(ISBLANK(INDIRECT(\"G\"&ROW(G81)-1))=FALSE,INDIRECT(\"G\"&ROW(G81)-1),\" \")","v":" "}]
[{"$f":"IF(ISBLANK(INDIRECT(\"A\"&ROW()-2))=FALSE,INDIRECT(\"A\"&ROW()-2)+1,\" \")","v":38},"Beschreibung der technischen Aggregate: Charakteristische Größen wie z.B....","x",null,null,{"$f":"IF(G82<>\"\",\"\",\"x\")","v":"x"}]
[null,"Kapazität/Durchsatz, Abmaße, Volumina, Leistungen thermisch, elektrisch, Luftmengen, Drücke, Termperaturen - die für das Aggregat charakteristische Kenngröße auswählen.\nDie Angaben müssen mit den Verfahrensschemata und der Verfahrensbeschreibung übereinstimmen. Für ALLE Aggregate, die dort enthalten sind, sind techn. Angaben zwingend.",{"$f":"IF(ISBLANK(INDIRECT(\"C\"&ROW(C83)-1))=FALSE,INDIRECT(\"C\"&ROW(C83)-1),\" \")","v":"x"},null,null,{"$f":"IF(ISBLANK(INDIRECT(\"F\"&ROW(F83)-1))=FALSE,INDIRECT(\"F\"&ROW(F83)-1),\" \")","v":"x"},{"$f":"IF(ISBLANK(INDIRECT(\"G\"&ROW(G83)-1))=FALSE,INDIRECT(\"G\"&ROW(G83)-1),\" \")","v":" "}]
[{"$f":"IF(ISBLANK(INDIRECT(\"A\"&ROW()-2))=FALSE,INDIRECT(\"A\"&ROW()-2)+1,\" \")","v":39},"Beschreibung der Energieversorgung und des Wärmenutzungspotenzials","x",null,null,{"$f":"IF(G84<>\"\",\"\",\"x\")","v":"x"}]
[null,null,{"$f":"IF(ISBLANK(INDIRECT(\"C\"&ROW(C85)-1))=FALSE,INDIRECT(\"C\"&ROW(C85)-1),\" \")","v":"x"},null,null,{"$f":"IF(ISBLANK(INDIRECT(\"F\"&ROW(F85)-1))=FALSE,INDIRECT(\"F\"&ROW(F85)-1),\" \")","v":"x"},{"$f":"IF(ISBLANK(INDIRECT(\"G\"&ROW(G85)-1))=FALSE,INDIRECT(\"G\"&ROW(G85)-1),\" \")","v":" "}]
[{"$f":"IF(ISBLANK(INDIRECT(\"A\"&ROW()-2))=FALSE,INDIRECT(\"A\"&ROW()-2)+1,\" \")","v":40},"Arbeitszeiten der Mitarbeiter","x",null,null,{"$f":"IF(G86<>\"\",\"\",\"x\")","v":"x"}]
[null,"ggf. getrennt nach Betriebseinheiten, falls unterschiedlich",{"$f":"IF(ISBLANK(INDIRECT(\"C\"&ROW(C87)-1))=FALSE,INDIRECT(\"C\"&ROW(C87)-1),\" \")","v":"x"},null,null,{"$f":"IF(ISBLANK(INDIRECT(\"F\"&ROW(F87)-1))=FALSE,INDIRECT(\"F\"&ROW(F87)-1),\" \")","v":"x"},{"$f":"IF(ISBLANK(INDIRECT(\"G\"&ROW(G87)-1))=FALSE,INDIRECT(\"G\"&ROW(G87)-1),\" \")","v":" "}]
[{"$f":"IF(ISBLANK(INDIRECT(\"A\"&ROW()-2))=FALSE,INDIRECT(\"A\"&ROW()-2)+1,\" \")","v":41},"Betriebszeiten der Anlage pro Tag, pro Woche, pro Jahr","x",null,null,{"$f":"IF(G88<>\"\",\"\",\"x\")","v":"x"}]
[null,"ggf. getrennt nach Betriebseinheiten, falls unterschiedlich",{"$f":"IF(ISBLANK(INDIRECT(\"C\"&ROW(C89)-1))=FALSE,INDIRECT(\"C\"&ROW(C89)-1),\" \")","v":"x"},null,null,{"$f":"IF(ISBLANK(INDIRECT(\"F\"&ROW(F89)-1))=FALSE,INDIRECT(\"F\"&ROW(F89)-1),\" \")","v":"x"},{"$f":"IF(ISBLANK(INDIRECT(\"G\"&ROW(G89)-1))=FALSE,INDIRECT(\"G\"&ROW(G89)-1),\" \")","v":" "}]
[{"$f":"IF(ISBLANK(INDIRECT(\"A\"&ROW()-2))=FALSE,INDIRECT(\"A\"&ROW()-2)+1,\" \")","v":42},"Anzahl der Mitarbeiter pro Schicht (max. gleichzeitig anwesend)","x",null,null,{"$f":"IF(G90<>\"\",\"\",\"x\")","v":"x"}]
[null,"getrennt nach Anzahl der Männer pro Schicht und\nAnzahl der Frauen pro Schicht",{"$f":"IF(ISBLANK(INDIRECT(\"C\"&ROW(C91)-1))=FALSE,INDIRECT(\"C\"&ROW(C91)-1),\" \")","v":"x"},null,null,{"$f":"IF(ISBLANK(INDIRECT(\"F\"&ROW(F91)-1))=FALSE,INDIRECT(\"F\"&ROW(F91)-1),\" \")","v":"x"},{"$f":"IF(ISBLANK(INDIRECT(\"G\"&ROW(G91)-1))=FALSE,INDIRECT(\"G\"&ROW(G91)-1),\" \")","v":" "}]
[{"$f":"IF(ISBLANK(INDIRECT(\"A\"&ROW()-2))=FALSE,INDIRECT(\"A\"&ROW()-2)+1,\" \")","v":43},"Einsatzstoffe (E) und Betriebsstoffe (B) und Zuordnung zu den Arbeitsschritten",null,"ggf. keine",null,{"$f":"IF(G92<>\"\",\"\",\"x\")","v":"x"}]
[null,"Einsatzstoffe sind die prozessbestimmenden Stoffe\nBetriebsstoffe sind prozessunterstützende Stoffe (z.B. Reiniger, Öle, Fette, Lösungsmittel etc.)",{"$f":"IF(ISBLANK(INDIRECT(\"C\"&ROW(C93)-1))=FALSE,INDIRECT(\"C\"&ROW(C93)-1),\" \")","v":" "},null,null,{"$f":"IF(ISBLANK(INDIRECT(\"F\"&ROW(F93)-1))=FALSE,INDIRECT(\"F\"&ROW(F93)-1),\" \")","v":"x"},{"$f":"IF(ISBLANK(INDIRECT(\"G\"&ROW(G93)-1))=FALSE,INDIRECT(\"G\"&ROW(G93)-1),\" \")","v":" "}]
[{"$f":"IF(ISBLANK(INDIRECT(\"A\"&ROW()-2))=FALSE,INDIRECT(\"A\"&ROW()-2)+1,\" \")","v":44},"Zu jedem Stoff: Ein (exemplarisches) AKTUELLES Sicherheitsdatenblatt",{"$nulls":3},{"$f":"IF(G94<>\"\",\"\",\"x\")","v":"x"}]
[null,null,{"$f":"IF(ISBLANK(INDIRECT(\"C\"&ROW(C95)-1))=FALSE,INDIRECT(\"C\"&ROW(C95)-1),\" \")","v":" "},null,null,{"$f":"IF(ISBLANK(INDIRECT(\"F\"&ROW(F95)-1))=FALSE,INDIRECT(\"F\"&ROW(F95)-1),\" \")","v":"x"},{"$f":"IF(ISBLANK(INDIRECT(\"G\"&ROW(G95)-1))=FALSE,INDIRECT(\"G\"&ROW(G95)-1),\" \")","v":" "}]
[{"$f":"IF(ISBLANK(INDIRECT(\"A\"&ROW()-2))=FALSE,INDIRECT(\"A\"&ROW()-2)+1,\" \")","v":45},"Zu jedem Stoff: Wie viel wird davon maximal verbraucht z.B. in kg/h",{"$nulls":3},{"$f":"IF(G96<>\"\",\"\",\"x\")","v":"x"}]
[null,"... oder einer anderen für das Vorhaben aussagekräftigen Einheit\nAchtung: die Angaben müssen schlüssig sein zur Angabe der jährlichen Betriebszeit.",{"$f":"IF(ISBLANK(INDIRECT(\"C\"&ROW(C97)-1))=FALSE,INDIRECT(\"C\"&ROW(C97)-1),\" \")","v":" "},null,null,{"$f":"IF(ISBLANK(INDIRECT(\"F\"&ROW(F97)-1))=FALSE,INDIRECT(\"F\"&ROW(F97)-1),\" \")","v":"x"},{"$f":"IF(ISBLANK(INDIRECT(\"G\"&ROW(G97)-1))=FALSE,INDIRECT(\"G\"&ROW(G97)-1),\" \")","v":" "}]
[{"$f":"IF(ISBLANK(INDIRECT(\"A\"&ROW()-2))=FALSE,INDIRECT(\"A\"&ROW()-2)+1,\" \")","v":46},"Zu jedem Stoff: Wo wird dieser gelagert?",{"$nulls":3},{"$f":"IF(G98<>\"\",\"\",\"x\")","v":"x"}]
[null,"Sind die Lagerbedingungen geeignet? Zusammenlagerungsverbote beachten! Ist die Größe des Lagers (der Auffangeinrichtungen) ausreichend dimensioniert?",{"$f":"IF(ISBLANK(INDIRECT(\"C\"&ROW(C99)-1))=FALSE,INDIRECT(\"C\"&ROW(C99)-1),\" \")","v":" "},null,null,{"$f":"IF(ISBLANK(INDIRECT(\"F\"&ROW(F99)-1))=FALSE,INDIRECT(\"F\"&ROW(F99)-1),\" \")","v":"x"},{"$f":"IF(ISBLANK(INDIRECT(\"G\"&ROW(G99)-1))=FALSE,INDIRECT(\"G\"&ROW(G99)-1),\" \")","v":" "}]
[{"$f":"IF(ISBLANK(INDIRECT(\"A\"&ROW()-2))=FALSE,INDIRECT(\"A\"&ROW()-2)+1,\" \")","v":47},"Zu jedem Stoff:  Wie viel wird davon maximal gelagert [kg, t, m³]?",{"$nulls":3},{"$f":"IF(G100<>\"\",\"\",\"x\")","v":"x"}]
[null,null,{"$f":"IF(ISBLANK(INDIRECT(\"C\"&ROW(C101)-1))=FALSE,INDIRECT(\"C\"&ROW(C101)-1),\" \")","v":" "},null,null,{"$f":"IF(ISBLANK(INDIRECT(\"F\"&ROW(F101)-1))=FALSE,INDIRECT(\"F\"&ROW(F101)-1),\" \")","v":"x"},{"$f":"IF(ISBLANK(INDIRECT(\"G\"&ROW(G101)-1))=FALSE,INDIRECT(\"G\"&ROW(G101)-1),\" \")","v":" "}]
[{"$f":"IF(ISBLANK(INDIRECT(\"A\"&ROW()-2))=FALSE,INDIRECT(\"A\"&ROW()-2)+1,\" \")","v":48},"Zu jedem Stoff: In welchen Gebinden wird der Stoff gelagert (Anzahl/Größe)?",{"$nulls":3},{"$f":"IF(G102<>\"\",\"\",\"x\")","v":"x"}]
[null,"Kanister, Hobbocks, Fässer, Tank...",{"$f":"IF(ISBLANK(INDIRECT(\"C\"&ROW(C103)-1))=FALSE,INDIRECT(\"C\"&ROW(C103)-1),\" \")","v":" "},null,null,{"$f":"IF(ISBLANK(INDIRECT(\"F\"&ROW(F103)-1))=FALSE,INDIRECT(\"F\"&ROW(F103)-1),\" \")","v":"x"},{"$f":"IF(ISBLANK(INDIRECT(\"G\"&ROW(G103)-1))=FALSE,INDIRECT(\"G\"&ROW(G103)-1),\" \")","v":" "}]
[{"$f":"IF(ISBLANK(INDIRECT(\"A\"&ROW()-2))=FALSE,INDIRECT(\"A\"&ROW()-2)+1,\" \")","v":49},"Zu jedem Stoff: Wie oft und auf welche Weise wird der Stoff angeliefert?",{"$nulls":3},{"$f":"IF(G104<>\"\",\"\",\"x\")","v":"x"}]
[null,null,{"$f":"IF(ISBLANK(INDIRECT(\"C\"&ROW(C105)-1))=FALSE,INDIRECT(\"C\"&ROW(C105)-1),\" \")","v":" "},null,null,{"$f":"IF(ISBLANK(INDIRECT(\"F\"&ROW(F105)-1))=FALSE,INDIRECT(\"F\"&ROW(F105)-1),\" \")","v":"x"},{"$f":"IF(ISBLANK(INDIRECT(\"G\"&ROW(G105)-1))=FALSE,INDIRECT(\"G\"&ROW(G105)-1),\" \")","v":" "}]
[{"$f":"IF(ISBLANK(INDIRECT(\"A\"&ROW()-2))=FALSE,INDIRECT(\"A\"&ROW()-2)+1,\" \")","v":50},"Festlegen der Abfälle (A)","x","ggf. keine",null,{"$f":"IF(G106<>\"\",\"\",\"x\")","v":"x"}]
[null,"Hinweis: Abwasser, das eingeleitet wird, ist KEIN Abfall.",{"$f":"IF(ISBLANK(INDIRECT(\"C\"&ROW(C107)-1))=FALSE,INDIRECT(\"C\"&ROW(C107)-1),\" \")","v":"x"},null,null,{"$f":"IF(ISBLANK(INDIRECT(\"F\"&ROW(F107)-1))=FALSE,INDIRECT(\"F\"&ROW(F107)-1),\" \")","v":"x"},{"$f":"IF(ISBLANK(INDIRECT(\"G\"&ROW(G107)-1))=FALSE,INDIRECT(\"G\"&ROW(G107)-1),\" \")","v":" "}]
[51,"Zu jeder Abfallart: Zuordnung, bei welchen Verfahrensschritten der Abfall anfällt.",{"$nulls":3},{"$f":"IF(G108<>\"\",\"\",\"x\")","v":"x"}]
[null,null,{"$f":"IF(ISBLANK(INDIRECT(\"C\"&ROW(C109)-1))=FALSE,INDIRECT(\"C\"&ROW(C109)-1),\" \")","v":" "},null,null,{"$f":"IF(ISBLANK(INDIRECT(\"F\"&ROW(F109)-1))=FALSE,INDIRECT(\"F\"&ROW(F109)-1),\" \")","v":"x"},{"$f":"IF(ISBLANK(INDIRECT(\"G\"&ROW(G109)-1))=FALSE,INDIRECT(\"G\"&ROW(G109)-1),\" \")","v":" "}]
[{"$f":"IF(ISBLANK(INDIRECT(\"A\"&ROW()-2))=FALSE,INDIRECT(\"A\"&ROW()-2)+1,\" \")","v":52},"Zu jeder Abfallart: Wieviel fällt davon maximal an [kg/a, t/a, m³/a]?",{"$nulls":3},{"$f":"IF(G110<>\"\",\"\",\"x\")","v":"x"}]
[null,"Achtung: die Angaben müssen schlüssig sein zur Angabe der Einsatzstoffe und der jährlichen Betriebszeit.",{"$nulls":3},{"$f":"IF(ISBLANK(INDIRECT(\"F\"&ROW(F111)-1))=FALSE,INDIRECT(\"F\"&ROW(F111)-1),\" \")","v":"x"},{"$f":"IF(ISBLANK(INDIRECT(\"G\"&ROW(G111)-1))=FALSE,INDIRECT(\"G\"&ROW(G111)-1),\" \")","v":" "}]
[53,"Zu jeder Abfallart: Abfallschlüsselnummer",{"$nulls":3},{"$f":"IF(G112<>\"\",\"\",\"x\")","v":"x"}]
[null,null,{"$f":"IF(ISBLANK(INDIRECT(\"C\"&ROW(C113)-1))=FALSE,INDIRECT(\"C\"&ROW(C113)-1),\" \")","v":" "},null,null,{"$f":"IF(ISBLANK(INDIRECT(\"F\"&ROW(F113)-1))=FALSE,INDIRECT(\"F\"&ROW(F113)-1),\" \")","v":"x"},{"$f":"IF(ISBLANK(INDIRECT(\"G\"&ROW(G113)-1))=FALSE,INDIRECT(\"G\"&ROW(G113)-1),\" \")","v":" "}]
[54,"Zu jeder Abfallart: Wie wird entsorgt (verwertet, verbrannt, beseitigt)?",{"$nulls":3},{"$f":"IF(G114<>\"\",\"\",\"x\")","v":"x"}]
[null,null," ",null,null,"x"," "]
[55,"Zu jeder Abfallart: Wie genau und wo wird entsorgt?",{"$nulls":3},{"$f":"IF(G116<>\"\",\"\",\"x\")","v":"x"}]
[null,null," ",null,null,"x"," "]
[56,"Zu jeder Abfallart: Nummer des Entsorgungsnachweises und Ablaufdatum",{"$nulls":3},{"$f":"IF(G118<>\"\",\"\",\"x\")","v":"x"}]
[null,null," ",null,null,"x"," "]
[57,"Luftführungsschema mit eingezeichneten Quellennummern",{"$nulls":3},{"$f":"IF(G120<>\"\",\"\",\"x\")","v":"x"}]
[null,"Die Angaben müssen mit den Verfahrensschemata und den Angaben zu den technischen Aggregaten übereinstimmen.",{"$f":"IF(ISBLANK(INDIRECT(\"C\"&ROW(C121)-1))=FALSE,INDIRECT(\"C\"&ROW(C121)-1),\" \")","v":" "},null,null,{"$f":"IF(ISBLANK(INDIRECT(\"F\"&ROW(F121)-1))=FALSE,INDIRECT(\"F\"&ROW(F121)-1),\" \")","v":"x"},{"$f":"IF(ISBLANK(INDIRECT(\"G\"&ROW(G121)-1))=FALSE,INDIRECT(\"G\"&ROW(G121)-1),\" \")","v":" "}]
[58,"Festlegen der emittierenden Einheiten (Schornstein) und Quellennummer","x","ggf. keine",null,{"$f":"IF(G122<>\"\",\"\",\"x\")","v":"x"}]
[null,"Diese Angaben müssen mit dem Luftführungsschema und den Verfahrensschemata übereinstimmen.",{"$f":"IF(ISBLANK(INDIRECT(\"C\"&ROW(C123)-1))=FALSE,INDIRECT(\"C\"&ROW(C123)-1),\" \")","v":"x"},null,null,{"$f":"IF(ISBLANK(INDIRECT(\"F\"&ROW(F123)-1))=FALSE,INDIRECT(\"F\"&ROW(F123)-1),\" \")","v":"x"},{"$f":"IF(ISBLANK(INDIRECT(\"G\"&ROW(G123)-1))=FALSE,INDIRECT(\"G\"&ROW(G123)-1),\" \")","v":" "}]
[59,"Zu jeder emittierende Einheit: Welche Aggregate sind angeschlossen?",{"$nulls":3},{"$f":"IF(G124<>\"\",\"\",\"x\")","v":"x"}]
[null,"Diese Angaben müssen mit dem Luftführungsschema und den Verfahrensschemata übereinstimmen.",{"$f":"IF(ISBLANK(INDIRECT(\"C\"&ROW(C125)-1))=FALSE,INDIRECT(\"C\"&ROW(C125)-1),\" \")","v":" "},null,null,{"$f":"IF(ISBLANK(INDIRECT(\"F\"&ROW(F125)-1))=FALSE,INDIRECT(\"F\"&ROW(F125)-1),\" \")","v":"x"},{"$f":"IF(ISBLANK(INDIRECT(\"G\"&ROW(G125)-1))=FALSE,INDIRECT(\"G\"&ROW(G125)-1),\" \")","v":" "}]
[60,"Zu jeder emittierenden Einheit: Wird kontinuierlich/diskontinuierlich emittiert?",{"$nulls":3},{"$f":"IF(G126<>\"\",\"\",\"x\")","v":"x"}]
[null,null,{"$f":"IF(ISBLANK(INDIRECT(\"C\"&ROW(C127)-1))=FALSE,INDIRECT(\"C\"&ROW(C127)-1),\" \")","v":" "},null,null,{"$f":"IF(ISBLANK(INDIRECT(\"F\"&ROW(F127)-1))=FALSE,INDIRECT(\"F\"&ROW(F127)-1),\" \")","v":"x"},{"$f":"IF(ISBLANK(INDIRECT(\"G\"&ROW(G127)-1))=FALSE,INDIRECT(\"G\"&ROW(G127)-1),\" \")","v":" "}]
[61,"Zu jeder emittierenden Einheit: Erfolgt eine Abgasreinigung? Welche?",{"$nulls":3},{"$f":"IF(G128<>\"\",\"\",\"x\")","v":"x"}]
[null,null,{"$f":"IF(ISBLANK(INDIRECT(\"C\"&ROW(C129)-1))=FALSE,INDIRECT(\"C\"&ROW(C129)-1),\" \")","v":" "},null,null,{"$f":"IF(ISBLANK(INDIRECT(\"F\"&ROW(F129)-1))=FALSE,INDIRECT(\"F\"&ROW(F129)-1),\" \")","v":"x"},{"$f":"IF(ISBLANK(INDIRECT(\"G\"&ROW(G129)-1))=FALSE,INDIRECT(\"G\"&ROW(G129)-1),\" \")","v":" "}]
[62,"Zu jeder emittierenden Einheit: Welche Stoffe werden emittiert?",{"$nulls":3},{"$f":"IF(G130<>\"\",\"\",\"x\")","v":"x"}]
[null,null,{"$f":"IF(ISBLANK(INDIRECT(\"C\"&ROW(C131)-1))=FALSE,INDIRECT(\"C\"&ROW(C131)-1),\" \")","v":" "},null,null,{"$f":"IF(ISBLANK(INDIRECT(\"F\"&ROW(F131)-1))=FALSE,INDIRECT(\"F\"&ROW(F131)-1),\" \")","v":"x"},{"$f":"IF(ISBLANK(INDIRECT(\"G\"&ROW(G131)-1))=FALSE,INDIRECT(\"G\"&ROW(G131)-1),\" \")","v":" "}]
[63,"Zu jeder emittierenden Einheit: Konzentration der emittierten Stoffe?",{"$nulls":3},{"$f":"IF(G132<>\"\",\"\",\"x\")","v":"x"}]
[null,"Angabe in mg/Nm³\nRohgaskonzentration und Reingaskonzentration im Falle einer Abluftreinigung",{"$f":"IF(ISBLANK(INDIRECT(\"C\"&ROW(C133)-1))=FALSE,INDIRECT(\"C\"&ROW(C133)-1),\" \")","v":" "},null,null,{"$f":"IF(ISBLANK(INDIRECT(\"F\"&ROW(F133)-1))=FALSE,INDIRECT(\"F\"&ROW(F133)-1),\" \")","v":"x"},{"$f":"IF(ISBLANK(INDIRECT(\"G\"&ROW(G133)-1))=FALSE,INDIRECT(\"G\"&ROW(G133)-1),\" \")","v":" "}]
[64,"Zu jeder emittierendne Einheit: Bauausführung (gemauert/Stahl), vorhanden/neu?",{"$nulls":3},{"$f":"IF(G134<>\"\",\"\",\"x\")","v":"x"}]
[null,null,{"$f":"IF(ISBLANK(INDIRECT(\"C\"&ROW(C135)-1))=FALSE,INDIRECT(\"C\"&ROW(C135)-1),\" \")","v":" "},null,null,{"$f":"IF(ISBLANK(INDIRECT(\"F\"&ROW(F135)-1))=FALSE,INDIRECT(\"F\"&ROW(F135)-1),\" \")","v":"x"},{"$f":"IF(ISBLANK(INDIRECT(\"G\"&ROW(G135)-1))=FALSE,INDIRECT(\"G\"&ROW(G135)-1),\" \")","v":" "}]
[65,"Zu jeder emittierenden Einheit: Abgasvolumenstr0m [Nm³/h] und Abgastemp.?",{"$nulls":3},{"$f":"IF(G136<>\"\",\"\",\"x\")","v":"x"}]
[null,null,{"$f":"IF(ISBLANK(INDIRECT(\"C\"&ROW(C137)-1))=FALSE,INDIRECT(\"C\"&ROW(C137)-1),\" \")","v":" "},null,null,{"$f":"IF(ISBLANK(INDIRECT(\"F\"&ROW(F137)-1))=FALSE,INDIRECT(\"F\"&ROW(F137)-1),\" \")","v":"x"},{"$f":"IF(ISBLANK(INDIRECT(\"G\"&ROW(G137)-1))=FALSE,INDIRECT(\"G\"&ROW(G137)-1),\" \")","v":" "}]
[66,"Zu jeder emittierenden Einheit: Höhe der Quelle über Grund und geodätische Höhe",{"$nulls":3},{"$f":"IF(G138<>\"\",\"\",\"x\")","v":"x"}]
[null,"Höhe über Grund muss mind. 10 m betragen und mind. 3 m über Dach.\nBei komplexen Vorhaben ist es wahrscheinlich, dass ein Schornsteinhöhengutachen in Kombination mit einer Ausbreitungsrechnung als Gutachten zum Antrag verlangt wird.\nGeodätische Höhe ist die Höhe der Quelle zuzüglich die Seehöhe des Standorts",{"$f":"IF(ISBLANK(INDIRECT(\"C\"&ROW(C139)-1))=FALSE,INDIRECT(\"C\"&ROW(C139)-1),\" \")","v":" "},null,null,{"$f":"IF(ISBLANK(INDIRECT(\"F\"&ROW(F139)-1))=FALSE,INDIRECT(\"F\"&ROW(F139)-1),\" \")","v":"x"},{"$f":"IF(ISBLANK(INDIRECT(\"G\"&ROW(G139)-1))=FALSE,INDIRECT(\"G\"&ROW(G139)-1),\" \")","v":" "}]
[67,"Zu jeder emittierenden Einheit: Austrittsfläche in m² und Durchmesser bzw. LxB",{"$nulls":3},{"$f":"IF(G140<>\"\",\"\",\"x\")","v":"x"}]
[null,null,{"$f":"IF(ISBLANK(INDIRECT(\"C\"&ROW(C141)-1))=FALSE,INDIRECT(\"C\"&ROW(C141)-1),\" \")","v":" "},null,null,{"$f":"IF(ISBLANK(INDIRECT(\"F\"&ROW(F141)-1))=FALSE,INDIRECT(\"F\"&ROW(F141)-1),\" \")","v":"x"},{"$f":"IF(ISBLANK(INDIRECT(\"G\"&ROW(G141)-1))=FALSE,INDIRECT(\"G\"&ROW(G141)-1),\" \")","v":" "}]
[68,"Zu jeder emittierenden Einheit: Angaben zu den Koordinaten",{"$nulls":3},{"$f":"IF(G142<>\"\",\"\",\"x\")","v":"x"}]
[null,"Je nach Bundesland werden Angaben nach ETRS89/UTM (Nord-/Ostwert) oder nach Gauss-Krüger (Rechts-/ Hochwerte) oder verlangt.",{"$f":"IF(ISBLANK(INDIRECT(\"C\"&ROW(C143)-1))=FALSE,INDIRECT(\"C\"&ROW(C143)-1),\" \")","v":" "},null,null,{"$f":"IF(ISBLANK(INDIRECT(\"F\"&ROW(F143)-1))=FALSE,INDIRECT(\"F\"&ROW(F143)-1),\" \")","v":"x"},{"$f":"IF(ISBLANK(INDIRECT(\"G\"&ROW(G143)-1))=FALSE,INDIRECT(\"G\"&ROW(G143)-1),\" \")","v":" "}]
[69,"Dachaufsichtsplan mit eingezeichneten Emissionsquellen (Nummer/Koordinaten)",{"$nulls":3},{"$f":"IF(G144<>\"\",\"\",\"x\")","v":"x"}]
[null,null,{"$f":"IF(ISBLANK(INDIRECT(\"C\"&ROW(C145)-1))=FALSE,INDIRECT(\"C\"&ROW(C145)-1),\" \")","v":" "},null,null,{"$f":"IF(ISBLANK(INDIRECT(\"F\"&ROW(F145)-1))=FALSE,INDIRECT(\"F\"&ROW(F145)-1),\" \")","v":"x"},{"$f":"IF(ISBLANK(INDIRECT(\"G\"&ROW(G145)-1))=FALSE,INDIRECT(\"G\"&ROW(G145)-1),\" \")","v":" "}]
[70,"Ermittlung der Immissionsvorbelastung und der Zusatzbelastung",{"$nulls":3},{"$f":"IF(G146<>\"\",\"\",\"x\")","v":"x"}]
[null,"Gutachten"," ",null,null,"x"," "]
[71,"Aussage über Lärmsituation an den Grundstücksgrenzen/an den Immissionsorten","x",null,null,{"$f":"IF(G148<>\"\",\"\",\"x\")","v":"x"}]
[null,"Bei Änderungen: Wie verändert sich die Lärmsituation im Vergleich zur bestehenen Situation?\nBei größeren Vorhaben oder bei kritischer Nachbarschaft ist es wahrscheinlich, dass dem Antrag eine Lärmimmissionsprognose als Gutachten beizulegen ist.","x",null,null,"x"," "]
[72,"Aussage über die Geruchssituation","x",null,null,{"$f":"IF(G150<>\"\",\"\",\"x\")","v":"x"}]
[null,"Bei Änderungen: Wie verändert sich die Geruchssituation im Vergleich zur bestehenen Situation?\nBei entsprechenden Vorhaben und/oder bei kritischer Nachbarschaft ist es wahrscheinlich, dass dem Antrag eine Geruchsimmissionsprognose als Gutachten beizulegen ist.","x",null,null,"x"," "]
[73,"Wasserführungsschema mit eingezeichneten Quellennummern",{"$nulls":3},{"$f":"IF(G152<>\"\",\"\",\"x\")","v":"x"}]
[null,"Die Angaben müssen mit den Verfahrensschemataund den Angaben zu den technischen Aggregaten übereinstimmen.",{"$f":"IF(ISBLANK(INDIRECT(\"C\"&ROW(C153)-1))=FALSE,INDIRECT(\"C\"&ROW(C153)-1),\" \")","v":" "},null,null,{"$f":"IF(ISBLANK(INDIRECT(\"F\"&ROW(F153)-1))=FALSE,INDIRECT(\"F\"&ROW(F153)-1),\" \")","v":"x"},{"$f":"IF(ISBLANK(INDIRECT(\"G\"&ROW(G153)-1))=FALSE,INDIRECT(\"G\"&ROW(G153)-1),\" \")","v":" "}]
[74,"Festlegen der Abwasserströme","x","ggf. keine",null,{"$f":"IF(G154<>\"\",\"\",\"x\")","v":"x"}]
[null,"Hinweis: Verschmutztes Wasser, das aufgefangen und als Abfall entsorgt wird, fällt nicht unter Abwasser.","x",null,null,"x"," "]
[75,"Zu jedem Abwasserstrom: Welche Aggregate sind angeschlossen?",{"$nulls":3},{"$f":"IF(G156<>\"\",\"\",\"x\")","v":"x"}]
[null,"Diese Angaben müssen mit dem Wasserführungsschema und den Verfahrensschemata übereinstimmen.",{"$f":"IF(ISBLANK(INDIRECT(\"C\"&ROW(C157)-1))=FALSE,INDIRECT(\"C\"&ROW(C157)-1),\" \")","v":" "},null,null,{"$f":"IF(ISBLANK(INDIRECT(\"F\"&ROW(F157)-1))=FALSE,INDIRECT(\"F\"&ROW(F157)-1),\" \")","v":"x"},{"$f":"IF(ISBLANK(INDIRECT(\"G\"&ROW(G157)-1))=FALSE,INDIRECT(\"G\"&ROW(G157)-1),\" \")","v":" "}]
[76,"Zu jedem Abwasserstrom: Wird kontinuierlich/diskontinuierlich abgeleitet?",{"$nulls":3},{"$f":"IF(G158<>\"\",\"\",\"x\")","v":"x"}]
[null,null,{"$f":"IF(ISBLANK(INDIRECT(\"C\"&ROW(C159)-1))=FALSE,INDIRECT(\"C\"&ROW(C159)-1),\" \")","v":" "},null,null,{"$f":"IF(ISBLANK(INDIRECT(\"F\"&ROW(F159)-1))=FALSE,INDIRECT(\"F\"&ROW(F159)-1),\" \")","v":"x"},{"$f":"IF(ISBLANK(INDIRECT(\"G\"&ROW(G159)-1))=FALSE,INDIRECT(\"G\"&ROW(G159)-1),\" \")","v":" "}]
[77,"Zu  jedem Abwasserstrom: Erfolgt eine Abwasserreinigung? Welche?",{"$nulls":3},{"$f":"IF(G160<>\"\",\"\",\"x\")","v":"x"}]
[null,null,{"$f":"IF(ISBLANK(INDIRECT(\"C\"&ROW(C161)-1))=FALSE,INDIRECT(\"C\"&ROW(C161)-1),\" \")","v":" "},null,null,{"$f":"IF(ISBLANK(INDIRECT(\"F\"&ROW(F161)-1))=FALSE,INDIRECT(\"F\"&ROW(F161)-1),\" \")","v":"x"},{"$f":"IF(ISBLANK(INDIRECT(\"G\"&ROW(G161)-1))=FALSE,INDIRECT(\"G\"&ROW(G161)-1),\" \")","v":" "}]
[78,"Zu jedem Abwasserstr0m: Art der Verschmutzung (Schadstoff)",{"$nulls":3},{"$f":"IF(G162<>\"\",\"\",\"x\")","v":"x"}]
[null,null," ",null,null,"x"," "]
[79,"Zu jedem Abwasserstrom/Stoff: Konzentration und Fracht?",{"$nulls":3},{"$f":"IF(G164<>\"\",\"\",\"x\")","v":"x"}]
[null,null," ",null,null,"x"," "]
[80,"Zu jedem Abwasserstr0m: Bauausführung Kanalsystem, vorhanden/neu?",{"$nulls":3},{"$f":"IF(G166<>\"\",\"\",\"x\")","v":"x"}]
[null,null,{"$f":"IF(ISBLANK(INDIRECT(\"C\"&ROW(C167)-1))=FALSE,INDIRECT(\"C\"&ROW(C167)-1),\" \")","v":" "},null,null,{"$f":"IF(ISBLANK(INDIRECT(\"F\"&ROW(F167)-1))=FALSE,INDIRECT(\"F\"&ROW(F167)-1),\" \")","v":"x"},{"$f":"IF(ISBLANK(INDIRECT(\"G\"&ROW(G167)-1))=FALSE,INDIRECT(\"G\"&ROW(G167)-1),\" \")","v":" "}]
[81,"Zu jedem Abwasserstrom: Abwasserstr0m [m³/h] und Abwassertemperatur?",{"$nulls":3},{"$f":"IF(G168<>\"\",\"\",\"x\")","v":"x"}]
[null,null,{"$f":"IF(ISBLANK(INDIRECT(\"C\"&ROW(C169)-1))=FALSE,INDIRECT(\"C\"&ROW(C169)-1),\" \")","v":" "},null,null,{"$f":"IF(ISBLANK(INDIRECT(\"F\"&ROW(F169)-1))=FALSE,INDIRECT(\"F\"&ROW(F169)-1),\" \")","v":"x"},{"$f":"IF(ISBLANK(INDIRECT(\"G\"&ROW(G169)-1))=FALSE,INDIRECT(\"G\"&ROW(G169)-1),\" \")","v":" "}]
[82,"Zu jedem Abwasserstrom: Wohin erfolgt die Ableitung (Gewässer/Kanal)?",{"$nulls":3},{"$f":"IF(G170<>\"\",\"\",\"x\")","v":"x"}]
[null,null," ",null,null,"x"," "]
[83,"Kanalplan/aktualisierter Kanalplan",{"$nulls":3},{"$f":"IF(G172<>\"\",\"\",\"x\")","v":"x"}]
[null,null," ",null,null,"x"," "]
[84,"Beschreibung der Maßnahmen zum Gewässerschutz (Rückhaltung, Dichtheit etc.)","x",null,null,{"$f":"IF(G174<>\"\",\"\",\"x\")","v":"x"}]
[null,"Maßnahmen nach AwSV","x",null,null,"x"," "]
[{"$f":"IF(ISBLANK(INDIRECT(\"A\"&ROW()-2))=FALSE,INDIRECT(\"A\"&ROW()-2)+1,\" \")","v":85},"Brauchbarkeitsnachweis der (Lager-) Behälter, Wannen, Beschichtungen etc.",{"$nulls":3},{"$f":"IF(G176<>\"\",\"\",\"x\")","v":"x"}]
[null,"Bauartzulassung, Prüfzeichen, Eignungsfeststellung",{"$f":"IF(ISBLANK(INDIRECT(\"C\"&ROW(C177)-1))=FALSE,INDIRECT(\"C\"&ROW(C177)-1),\" \")","v":" "},null,null,{"$f":"IF(ISBLANK(INDIRECT(\"F\"&ROW(F177)-1))=FALSE,INDIRECT(\"F\"&ROW(F177)-1),\" \")","v":"x"},{"$f":"IF(ISBLANK(INDIRECT(\"G\"&ROW(G177)-1))=FALSE,INDIRECT(\"G\"&ROW(G177)-1),\" \")","v":" "}]
[{"$f":"IF(ISBLANK(INDIRECT(\"A\"&ROW()-2))=FALSE,INDIRECT(\"A\"&ROW()-2)+1,\" \")","v":86},"Beschreibung der Arbeitsschutzmaßnahmen (technisch, organisatorisch, pers.)","x",null,null,{"$f":"IF(G178<>\"\",\"\",\"x\")","v":"x"}]
[null,"Quintessenz aus der Gefährdungsbeurteilung","x",null,null,"x"," "]
[87,"Gibt es Lärmarbeitsplätze > 80 dB(A) bzw. > 85 dB(A) ? Ggf. Schutzmaßnahmen","x",null,null,{"$f":"IF(G180<>\"\",\"\",\"x\")","v":"x"}]
[null,"ja/nein, tatsächlicher Pegel, Ursache, Beschreibung der Schutzmaßnahmen","x",null,null,"x"," "]
[88,"Angaben zur Sichtverbindung nach Außen...","x",null,null,{"$f":"IF(G182<>\"\",\"\",\"x\")","v":"x"}]
[null,"... für jeden Bereich, in dem manuell gearbeitet wird. Größe des Raums in m², Fläche der Sichtverbindung nach außen.","x",null,null,"x"," "]
[89,"Angabe zu Lage und Größe der Sozial-/Sanitärräume (Auslegung)","x",null,null,{"$f":"IF(G184<>\"\",\"\",\"x\")","v":"x"}]
[null,"Getrennt für Männer und Frauen - falls relevant\nDie Angaben müssen mit den Layouts übereinstimmen","x",null,null,"x"," "]
[90,"Plan über vorhandene (geplante) Sozial-/Sanitärräume",{"$nulls":3},{"$f":"IF(G186<>\"\",\"\",\"x\")","v":"x"}]
[null,"Falls nicht in Layouts und/oder Baugesuch integriert"," ",null,null,"x"," "]
[91,"Angaben zu möglichen Störungen im Betriebsablauf","x",null,null,{"$f":"IF(G188<>\"\",\"\",\"x\")","v":"x"}]
[null,"Mögliche Störungen, Anforderungen zu deren Verhinderung, zur Begrenzung der Auswirkungen, ergänzende Anforderungen an die Errichtung und den Betrieb","x",null,null,"x"," "]
[92,"Erstellen eines Sicherheitsberichts nach 12. BImSchV",{"$nulls":3},{"$f":"IF(G190<>\"\",\"\",\"x\")","v":"x"}]
[null,null," ",null,null,"x"," "]
[93,"Explosionsschutzdokument",{"$nulls":3},{"$f":"IF(G192<>\"\",\"\",\"x\")","v":"x"}]
[null,null," ",null,null,"x"," "]
[94,"Beschreibung von Brandschutzmaßnahmen","x",null,null,{"$f":"IF(G194<>\"\",\"\",\"x\")","v":"x"}]
[null,"ggf. (gutachterliche) Aussagen zum baulichen, technischen und organisatorischen Brandschutz","x",null,null,"x"," "]
[95,"Angaben zur Löschwasserrückhaltung",{"$nulls":3},{"$f":"IF(G196<>\"\",\"\",\"x\")","v":"x"}]
[null,"Ggf. in Zusammenarbeit mit der Feuerwehr, ggf. Brandschutzgutachter"," ",null,null,"x"," "]
[96,"Brandschutz- und Fluchtwegepläne",{"$nulls":3},{"$f":"IF(G198<>\"\",\"\",\"x\")","v":"x"}]
[null,null," ",null,null,"x"," "]
[97,"Werden überwachungsbedürftige Anlagen im Sinne der BetrSichV errichtet","x",null,null,{"$f":"IF(G200<>\"\",\"\",\"x\")","v":"x"}]
[null,"... Ggf. Prüfung durch zugelassenen Überwachungsstelle","x",null,null,"x"," "]
[98,"Angaben zur standortbezogenen/allg. Vorprüfung des Einzelfalls zum UVPG",{"$nulls":3},{"$f":"IF(G202<>\"\",\"\",\"x\")","v":"x"}]
[null,"ggf. gutachterliche Stellungnahme"," ",null,null,"x"," "]
[99,{"$nulls":4},{"$f":"IF(B204=\"\",\"\",IF(G204<>\"\",\"\",\"x\"))","v":""}]
[null,null," ",null,null,""," "]
[100,{"$nulls":4},{"$f":"IF(B206=\"\",\"\",IF(G206<>\"\",\"\",\"x\"))","v":""}]
[null,null," ",null,null,""," "]
[101,{"$nulls":4},{"$f":"IF(B208=\"\",\"\",IF(G208<>\"\",\"\",\"x\"))","v":""}]
[null,null," ",null,null,""," "]

{"sheet":"Nutzungsbedingungen","index":1,"n_rows":2,"n_cols":2,"rows_kept":2}
["Nutzungsbedingungen"]
[null,"Nutzungsbedingungen und Haftungsausschluss\n\nUrheberrecht\nDas uneingeschränkte Copyright für die Datei »Erforderliche Informationen/Daten für Genehmigungsantrag/Anzeige« liegt bei der Risolva GmbH, das heißt alle Rechte, auch die der Kopie, der Weitergabe und Verwendung, um artverwandte Produkte zu entwickeln, bleiben auch bei nur auszugsweiser Verwertung, vorbehalten. \n\nHaftungsausschluss\nDie Inhalte wurden aufgrund unseren langjährigen Erfahrungen bei der Erstellung von Antragsunterlagen und der Begleitung in Genehmigungsverfahren zusammengestellt. Wir erheben jedoch weder von der Auswahl noch vom Umfang her einen Anspruch der Vollständigkeit und können diesen in keinem Fall gewähren. Der tatsächliche Inhalt und Umfang der Unterlagen wird final mit der Genehmigungsbehörde festgelegt.\n\nDer enthaltene Programmcode wurde mit größtmöglicher Sorgfalt entwickelt und getestet. Risolva übernimmt keine Gewährleistung über die Funktionsfähigkeit der Datei auf dem Rechner des Anwenders. Bei Software muss nach Stand von Wissenschaft und Technik gegebenenfalls mit Fehlern gerechnet werden. Es können unter bestimmten Systemvoraussetzungen Unzulänglichkeiten nicht hundertprozentig ausgeschlossen werden. Risolva schließt jegliche Haftung aus, die aus der Nutzung des Tools und daraus resultierenden Schäden, Folgeschäden, entgangenem Gewinn, Betriebsunterbrechung, Verlust von Informationen oder irgendeinem anderen Vermögensschaden, für den Anwender oder für einen Dritten entstehen.\n\nSupport\nFür Installation und Nutzung des Tools besteht kein Anspruch auf Unterstützung oder Support. Risolva bietet jedoch eine Produktunterstützung an. Wenden Sie sich dazu an info@risolva.de. Es kann aber nicht garantiert werden, dass auf die Anfrage unmittelbar reagiert wird oder dass das entsprechende Problem tatsächlich gelöst werden kann.\n\nDiese Nutzungsbedingungen können Sie übrigens jederzeit von unserer Internetseite www.risolva.de herunterladen.\n\nMöchten Sie sich bei der Antragstellung entlasten, unterstützen wir Sie gerne. Wenden Sie sich dazu an anja.blum@risolva.de.\n"]